bitfinex-derivatives/quotes_SOLF0:USTF0_20250623
["timestamp","ask_amount","ask_price","bid_price","bid_amount"]
[1750720177042,6.9136,144.54,144.51,6.9146]
[1750720178044,6.913,144.55,144.52,6.914]
[1750720178234,41.92,144.57,144.5,44.99]
[1750720178838,6.9131,144.55,144.51,6.9142]
[1750720179039,3.68212755,144.54,144.5,44.99]
[1750720179645,45.60212755,144.57,144.5,44.99]
[1750720180438,3.68212755,144.55,144.5,44.99]
[1750720180742,6.9141,144.53,144.5,51.9051]
[1750720180941,6.9141,144.53,144.5,44.99]
[1750720181242,6.9134,144.54,144.5,44.99]
[1750720181447,3.68212755,144.55,144.5,44.99]
[1750720182134,3.68212755,144.55,144.5,51.9049]
[1750720182541,3.68212755,144.55,144.5,44.99]
[1750720182739,6.9136,144.54,144.51,6.9147]
[1750720183955,6.9138,144.53,144.5,51.905]
[1750720184439,6.9145,144.52,144.5,44.99]
[1750720184644,3.68212755,144.55,144.5,44.99]
[1750720185653,3.68212755,144.55,144.51,34.0]
[1750720185850,6.9141,144.53,144.51,34.0]
[1750720186554,6.9142,144.52,144.51,34.0]
[1750720197249,41.92,144.53,144.51,34.0]
[1750720197858,6.9142,144.52,144.51,34.0]
[1750720198658,48.834,144.53,144.51,34.0]
[1750720198956,41.92,144.53,144.51,34.0]
[1750720199658,10.59632755,144.52,144.51,34.0]
[1750720200556,41.92,144.53,144.51,34.0]
[1750720201152,6.9142,144.52,144.51,34.0]
[1750720202960,48.834,144.53,144.51,34.0]
[1750720203164,6.914,144.53,144.51,40.9147]
[1750720203464,6.914,144.53,144.51,34.0]
[1750720205063,41.6,144.56,144.51,34.0]
[1750720205264,3.68212755,144.54,144.51,34.0]
[1750720205654,6.9142,144.52,144.51,34.0]
[1750720207065,41.6,144.56,144.51,34.0]
[1750720207265,45.28212755,144.56,144.51,34.0]
[1750720208567,6.9138,144.53,144.51,34.0]
[1750720208764,6.9138,144.53,144.5,6.9149]
[1750720210565,45.28212755,144.56,144.48,39.1628]
[1750720210767,3.68212755,144.52,144.48,39.1628]
[1750720211173,6.9154,144.5,144.48,39.1628]
[1750720211473,3.68212755,144.52,144.48,39.1628]
[1750720211672,3.68212755,144.52,144.48,46.0788]
[1750720212064,41.6,144.56,144.48,46.0788]
[1750720212065,3.68212755,144.54,144.48,39.1628]
[1750720212462,3.68212755,144.52,144.48,39.1628]
[1750720212669,6.9155,144.5,144.48,39.1628]
[1750720212868,3.68212755,144.52,144.48,46.0785]
[1750720213166,3.68212755,144.52,144.48,39.1628]
[1750720213474,3.68212755,144.52,144.48,36.8786]
[1750720213674,45.28212755,144.52,144.48,36.8786]
[1750720214372,6.9154,144.5,144.48,36.8786]
[1750720214571,3.68212755,144.5,144.48,34.6]
[1750720215076,3.68212755,144.5,144.48,64.43]
[1750720215576,6.9157,144.49,144.48,64.43]
[1750720215761,6.9157,144.49,144.48,47.13]
[1750720215969,3.68212755,144.49,144.43,2.3583]
[1750720216276,3.68212755,144.47,144.42,2.1926]
[1750720216473,3.68212755,144.47,144.43,2.3583]
[1750720216883,3.68212755,144.48,144.44,6.9178]
[1750720217578,6.9169,144.47,144.44,6.9178]
[1750720218075,3.68212755,144.48,144.43,9.2766]
[1750720218274,6.9174,144.46,144.43,9.2766]
[1750720218671,10.60022755,144.44,144.43,2.3583]
[1750720218981,3.68212755,144.44,144.38,148.92212755]
[1750720219175,3.68212755,144.42,144.39,2.2087]
[1750720219372,3.68212755,144.4,144.39,2.2087]
[1750720219766,3.68212755,144.44,144.39,2.2087]
[1750720219967,3.68212755,144.46,144.39,5.89082755]
[1750720220277,41.6,144.47,144.39,5.89082755]
[1750720220278,3.68795666,144.43,144.4,13.3]
[1750720220668,6.9195,144.41,144.4,13.3]
[1750720220869,10.60745666,144.41,144.4,13.3]
[1750720225570,6.9195,144.41,144.4,13.3]
[1750720225776,10.60715666,144.42,144.4,13.3]
[1750720226877,3.68859084,144.45,144.4,13.3]
[1750720227085,3.68847343,144.44,144.4,20.22]
[1750720227283,10.60687343,144.44,144.4,20.22]
[1750720228277,6.9185,144.43,144.4,20.22]
[1750720228784,10.60677343,144.44,144.41,6.9194]
[1750720229579,10.60677343,144.44,144.42,24.51]
[1750720231188,6.9185,144.43,144.42,24.51]
[1750720231386,41.34,144.45,144.42,24.51]
[1750720231587,45.02847343,144.45,144.42,24.51]
[1750720232689,6.9184,144.44,144.42,24.51]
[1750720233991,51.94627343,144.45,144.42,31.429]
[1750720234589,6.9181,144.44,144.42,24.51]
[1750720235089,45.02847343,144.45,144.42,24.51]
[1750720235290,6.9185,144.44,144.42,24.51]
[1750720235478,45.02847343,144.45,144.42,24.51]
[1750720236685,606.5771,144.52,144.42,24.51]
[1750720236891,3.68847343,144.47,144.42,26.7428]
[1750720237586,6.9172,144.46,144.43,6.9183]
[1750720238492,3.68847343,144.47,144.42,26.7428]
[1750720238988,6.9174,144.46,144.43,6.9185]
[1750720239883,6.9176,144.45,144.42,33.6616]
[1750720240586,41.34,144.48,144.42,26.7428]
[1750720240891,41.34,144.48,144.42,30.42983578]
[1750720241093,6.9166,144.47,144.44,6.9178]
[1750720241287,3.68703578,144.5,144.43,2.3913]
[1750720241494,3.68703578,144.54,144.47,3.68703578]
[1750720241694,3.68703578,144.54,144.48,4.6118]
[1750720241695,6.915,144.51,144.48,4.6118]
[1750720241885,3.68703578,144.54,144.48,4.6118]
[1750720242292,41.34,144.55,144.48,4.6118]
[1750720242500,41.34,144.55,144.49,2.3913]
[1750720242888,3.68703578,144.54,144.49,9.3067]
[1750720243198,3.68703578,144.54,144.5,13.29]
[1750720243896,6.9143,144.52,144.5,13.29]
[1750720244388,6.9139,144.53,144.5,13.29]
[1750720245197,6.9143,144.52,144.5,13.29]
[1750720245496,3.68703578,144.54,144.5,13.29]
[1750720245699,6.9139,144.53,144.5,13.29]
[1750720246384,6.9143,144.52,144.5,13.29]
[1750720246900,3.68703578,144.52,144.5,13.29]
[1750720247200,6.9147,144.51,144.5,13.29]
[1750720247796,41.32,144.51,144.44,2.3793]
[1750720247991,3.68703578,144.48,144.44,2.3793]
[1750720248700,10.60333578,144.48,144.44,9.2971]
[1750720249100,3.68703578,144.48,144.44,9.2971]
[1750720249494,3.68703578,144.48,144.45,6.9175]
[1750720249695,41.32,144.51,144.45,6.9175]
[1750720249995,3.68703578,144.49,144.45,6.9175]
[1750720250194,45.00703578,144.51,144.44,2.3793]
[1750720250398,6.9154,144.5,144.44,2.3793]
[1750720250590,45.00703578,144.51,144.44,2.3793]
[1750720250788,3.68703578,144.53,144.45,3.68703578]
[1750720251498,10.60113578,144.53,144.45,3.68703578]
[1750720251699,10.60113578,144.53,144.49,6.9152]
[1750720251898,6.9141,144.53,144.45,3.68703578]
[1750720252201,6.9141,144.53,144.49,6.9154]
[1750720252398,6.9141,144.53,144.45,3.68703578]
[1750720252901,6.9141,144.53,144.49,6.9153]
[1750720253796,45.00703578,144.54,144.49,6.9153]
[1750720254004,6.9143,144.52,144.49,6.9153]
[1750720255599,6.9147,144.51,144.48,6.9159]
[1750720255903,3.68703578,144.52,144.44,47.38633578]
[1750720256201,6.9149,144.51,144.47,6.9162]
[1750720256993,6.9153,144.5,144.47,6.9162]
[1750720258604,6.9153,144.5,144.48,28.81]
[1750720258806,6.9149,144.51,144.48,35.726]
[1750720260506,10.60143578,144.52,144.49,6.9156]
[1750720260900,45.00703578,144.54,144.48,28.81]
[1750720261206,51.92063578,144.54,144.51,6.9145]
[1750720261601,41.32,144.54,144.52,6.914]
[1750720262003,6.9131,144.55,144.52,6.914]
[1750720262605,10.59953578,144.56,144.53,6.9138]
[1750720262813,3.68703578,144.56,144.5,2.3737]
[1750720263107,3.68703578,144.54,144.5,2.3737]
[1750720263800,10.60053578,144.54,144.51,6.9144]
[1750720264204,3.68703578,144.54,144.5,2.3737]
[1750720265004,10.60053578,144.54,144.51,6.9144]
[1750720265897,3.68703578,144.54,144.52,6.9142]
[1750720266098,3.68703578,144.54,144.5,2.3737]
[1750720266404,6.913,144.55,144.5,2.3737]
[1750720267705,6.913,144.55,144.52,6.9139]
[1750720268207,3.68703578,144.54,144.5,2.3737]
[1750720268403,3.68703578,144.52,144.5,2.3737]
[1750720268805,10.60163578,144.52,144.5,2.3737]
[1750720269205,3.68703578,144.52,144.5,2.3737]
[1750720269608,41.02,144.57,144.5,2.3737]
[1750720269807,6.9116,144.58,144.51,3.68703578]
[1750720270115,638.74,144.6,144.51,5.90073578]
[1750720270315,6.9121,144.57,144.51,5.90073578]
[1750720270517,3.68703578,144.57,144.51,2.2137]
[1750720270914,3.68703578,144.57,144.51,9.1282]
[1750720271124,3.68703578,144.57,144.51,2.2137]
[1750720271516,6.9126,144.56,144.52,6.914]
[1750720272220,6.9129,144.55,144.52,6.914]
[1750720274318,6.9125,144.56,144.52,6.914]
[1750720274521,6.9125,144.56,144.53,6.9137]
[1750720274813,638.74,144.6,144.51,5.90073578]
[1750720275020,41.02,144.6,144.53,3.68703578]
[1750720275209,10.59723578,144.61,144.53,44.68703578]
[1750720275411,3.68703578,144.61,144.53,44.68703578]
[1750720276018,3.68703578,144.61,144.57,6.9115]
[1750720276222,41.0,144.62,144.53,44.68703578]
[1750720276418,44.68703578,144.62,144.55,3.68703578]
[1750720276615,44.68703578,144.62,144.56,4.6609]
[1750720276821,44.68703578,144.62,144.59,6.9108]
[1750720277021,51.59683578,144.62,144.59,6.9108]
[1750720277224,3.68703578,144.64,144.6,6.9104]
[1750720277527,6.9092,144.63,144.6,6.9104]
[1750720278126,3.68703578,144.64,144.61,6.9099]
[1750720278423,3.68703578,144.67,144.59,3.68703578]
[1750720279418,6.9076,144.66,144.58,62.0]
[1750720279619,3.67708249,144.66,144.59,3.67708249]
[1750720280223,6.9088,144.64,144.61,6.9097]
[1750720280424,3.67708249,144.66,144.59,3.67708249]
[1750720280716,3.67708249,144.66,144.58,3.67708249]
[1750720280981,3.67708249,144.64,144.6,6.9102]
[1750720281177,41.0,144.64,144.57,43.2986]
[1750720281408,3.67708249,144.62,144.57,43.2986]
[1750720282125,41.0,144.64,144.56,4.6609]
[1750720282126,3.67708249,144.6,144.56,4.6609]
[1750720282328,3.67708249,144.6,144.56,2.3207]
[1750720282732,6.911,144.59,144.56,9.2328]
[1750720283028,3.67708249,144.6,144.56,2.3207]
[1750720283223,6.91,144.61,144.58,6.9113]
[1750720283432,3.67708249,144.6,144.58,6.9113]
[1750720284027,3.67708249,144.6,144.59,6.9109]
[1750720284228,44.65878675,144.65,144.58,3.67878675]
[1750720284530,3.67878675,144.65,144.58,44.65878675]
[1750720284735,3.67878675,144.65,144.59,15.82]
[1750720285128,44.65878675,144.67,144.59,18.0951]
[1750720285432,51.56628675,144.67,144.63,6.9089]
[1750720285734,47.913,144.73,144.59,162.1551]
[1750720286026,2671.32317151,144.84,144.59,162.1551]
[1750720286027,4.6296,144.77,144.69,3.67878675]
[1750720286336,6.933,144.8,144.7,40.98]
[1750720286526,6.933,144.78,144.71,4.53]
[1750720286828,6.933,144.78,144.72,2.3713]
[1750720287033,10.61178675,144.78,144.72,9.2756]
[1750720287222,6.933,144.75,144.66,40.98]
[1750720287420,10.61178675,144.75,144.67,3.67878675]
[1750720287629,3.67878675,144.73,144.67,17.28]
[1750720288035,3.67878675,144.73,144.68,6.9061]
[1750720288539,3.67878675,144.73,144.67,17.28]
[1750720289133,6.933,144.75,144.7,6.9056]
[1750720289332,3.67878675,144.78,144.71,3.67878675]
[1750720289534,3.67878675,144.78,144.72,2.4073]
[1750720289730,3.67878675,144.78,144.72,4.7129]
[1750720290236,3.67878675,144.78,144.72,11.6171]
[1750720291029,6.9023,144.77,144.72,4.7129]
[1750720291229,40.7,144.79,144.72,4.7129]
[1750720291433,3.67199737,144.78,144.72,4.7129]
[1750720291743,44.37199737,144.79,144.74,6.9036]
[1750720292336,44.37199737,144.79,144.75,6.9032]
[1750720292638,51.27339737,144.79,144.72,4.7129]
[1750720292937,40.7,144.79,144.72,4.7129]
[1750720293137,597.06,144.88,144.73,3.67199737]
[1750720293336,3.67199737,144.81,144.73,3.67199737]
[1750720293540,3.67199737,144.81,144.76,6.9027]
[1750720294642,3.67199737,144.81,144.77,6.9022]
[1750720295047,3.67199737,144.81,144.75,3.67199737]
[1750720295245,40.68,144.82,144.75,3.67199737]
[1750720295438,40.68,144.82,144.74,40.68]
[1750720295641,3.67199737,144.81,144.74,40.68]
[1750720296341,6.9009,144.8,144.74,40.68]
[1750720296546,3.67199737,144.8,144.74,40.68]
[1750720296746,51.25189737,144.82,144.78,6.9018]
[1750720297144,44.35199737,144.82,144.78,6.9018]
[1750720297349,51.25199737,144.82,144.78,6.9018]
[1750720297745,597.06,144.88,144.75,3.67199737]
[1750720297940,3.67199737,144.84,144.74,40.68]
[1750720298148,40.66,144.87,144.76,3.67199737]
[1750720298353,10.57129737,144.84,144.79,6.9009]
[1750720298646,3.67199737,144.84,144.76,3.67199737]
[1750720298853,6.8995,144.83,144.79,6.901]
[1750720299055,3.67199737,144.82,144.74,40.68]
[1750720299242,3.67199737,144.82,144.74,44.35199737]
[1750720300553,40.66,144.83,144.76,3.67199737]
[1750720300767,44.33199737,144.83,144.76,3.67199737]
[1750720300950,44.33199737,144.83,144.75,3.67199737]
[1750720301653,44.33199737,144.83,144.79,6.901]
[1750720301858,40.66,144.83,144.75,3.67199737]
[1750720302052,44.33199737,144.83,144.75,3.67199737]
[1750720302248,44.33199737,144.83,144.77,3.67199737]
[1750720302459,40.66,144.83,144.78,2.2597]
[1750720302662,10.57079737,144.85,144.81,6.9001]
[1750720302856,10.57079737,144.85,144.78,2.2597]
[1750720302857,10.57079737,144.85,144.79,2.3711]
[1750720303162,3.67199737,144.85,144.79,2.3711]
[1750720303362,10.57049737,144.85,144.79,2.3711]
[1750720304561,47.5582,144.86,144.79,2.3711]
[1750720304863,40.66,144.86,144.79,2.3711]
[1750720305160,6.8987,144.85,144.79,2.3711]
[1750720305362,3.67199737,144.87,144.8,3.67199737]
[1750720305656,3.67199737,144.87,144.84,6.8987]
[1750720305657,6.8977,144.87,144.84,6.8987]
[1750720305861,44.33199737,144.88,144.8,5.93449737]
[1750720306256,6.8979,144.87,144.81,3.67199737]
[1750720306456,44.33199737,144.88,144.8,2.2625]
[1750720306657,6.8983,144.86,144.82,6.8995]
[1750720306859,44.33199737,144.88,144.8,2.2625]
[1750720307056,44.33199737,144.88,144.81,3.67199737]
[1750720307255,40.66,144.88,144.81,3.67199737]
[1750720307460,40.66,144.88,144.83,3.67199737]
[1750720307661,40.66,144.88,144.81,3.67199737]
[1750720307864,6.8975,144.87,144.84,6.8987]
[1750720308060,44.33199737,144.88,144.8,2.2625]
[1750720308266,3.67199737,144.87,144.8,2.2625]
[1750720308455,6.8983,144.86,144.82,6.8999]
[1750720308861,3.67199737,144.87,144.83,6.8994]
[1750720309069,3.67199737,144.85,144.8,2.2625]
[1750720309259,3.67199737,144.86,144.8,2.2625]
[1750720309462,3.67199737,144.86,144.83,6.8991]
[1750720309659,40.66,144.88,144.8,5.93449737]
[1750720309660,44.33199737,144.88,144.8,5.93449737]
[1750720310068,44.33199737,144.88,144.81,26.37]
[1750720310368,40.66,144.88,144.82,3.66587397]
[1750720310568,40.66,144.88,144.87,6.8975]
[1750720310768,3.66587397,144.9,144.82,44.30587397]
[1750720310966,3.66587397,144.88,144.82,3.66587397]
[1750720311174,4.7247,144.93,144.81,26.37]
[1750720311175,3.66587397,144.86,144.81,26.37]
[1750720311969,10.56417397,144.86,144.83,6.8994]
[1750720312472,6.8983,144.86,144.83,6.8994]
[1750720312867,51.20357397,144.87,144.84,6.899]
[1750720313862,40.64,144.87,144.85,6.8984]
[1750720314269,40.64,144.9,144.81,26.37]
[1750720314473,40.64,144.9,144.86,6.8978]
[1750720314674,46.92526762,144.9,144.86,6.8978]
[1750720315677,6.8968,144.89,144.86,6.8978]
[1750720316370,47.5364,144.9,144.82,6.28526762]
[1750720316567,40.64,144.9,144.82,6.28526762]
[1750720316767,40.64,144.9,144.86,6.8977]
[1750720316963,40.64,144.9,144.82,6.28526762]
[1750720317470,5.14651789,144.89,144.82,6.28526762]
[1750720317773,40.64,144.9,144.82,6.28526762]
[1750720317975,5.14654751,144.89,144.82,6.28526762]
[1750720318175,40.64,144.9,144.82,6.28526762]
[1750720318375,5.14654683,144.89,144.82,6.28526762]
[1750720318572,40.64,144.9,144.82,6.28526762]
[1750720318775,5.1460097,144.89,144.82,6.28526762]
[1750720318969,40.64,144.9,144.88,6.8967]
[1750720319171,40.64,144.93,144.84,6.28526762]
[1750720319374,5.14624343,144.92,144.85,4.6133]
[1750720319568,6.8953,144.92,144.89,6.8965]
[1750720319773,40.64,144.93,144.85,4.6133]
[1750720320171,6.8959,144.91,144.85,4.6133]
[1750720320377,46.92526762,144.93,144.85,4.6133]
[1750720320575,40.64,144.93,144.85,4.6133]
[1750720320877,6.8964,144.9,144.85,4.6133]
[1750720321078,6.28147814,144.92,144.85,4.6133]
[1750720321381,6.8964,144.9,144.87,6.8972]
[1750720321583,6.28147814,144.92,144.85,4.6133]
[1750720321774,6.28147814,144.91,144.85,4.6133]
[1750720322081,5.17177569,144.9,144.84,40.64]
[1750720322281,5.17177569,144.89,144.84,46.92147814]
[1750720322484,10.71617814,144.97,144.88,6.28147814]
[1750720322681,2.56622284,144.96,144.88,6.28147814]
[1750720322884,13.28240098,144.97,144.88,6.28147814]
[1750720323085,6.8945,144.94,144.91,6.8955]
[1750720323379,10.71617814,144.97,144.88,6.28147814]
[1750720323578,6.894,144.95,144.88,6.28147814]
[1750720323882,10.71617814,144.97,144.88,6.28147814]
[1750720323883,4.4347,144.97,144.88,6.28147814]
[1750720324079,10.71617814,144.97,144.88,6.28147814]
[1750720324287,40.58,144.98,144.88,46.86147814]
[1750720324580,46.86147814,144.98,144.89,2.1933]
[1750720324975,6.28147814,144.96,144.88,40.58]
[1750720325173,2.56651308,144.97,144.88,40.58]
[1750720325368,40.58,144.98,144.9,6.896]
[1750720325369,6.8945,144.94,144.9,6.896]
[1750720325578,6.28147814,144.95,144.86,2.3423]
[1750720325879,6.28147814,144.95,144.86,8.62377814]
[1750720326382,6.8948,144.93,144.89,6.8962]
[1750720326587,6.28147814,144.93,144.86,2.3423]
[1750720326877,13.17737814,144.91,144.87,6.8971]
[1750720327384,6.8959,144.91,144.87,6.8972]
[1750720327579,6.8959,144.91,144.85,40.58]
[1750720327979,6.8959,144.91,144.88,6.897]
[1750720328189,6.28147814,144.93,144.85,46.86147814]
[1750720328884,6.895,144.93,144.85,46.86147814]
[1750720329075,40.58,144.94,144.87,6.28147814]
[1750720329378,6.895,144.93,144.87,6.28147814]
[1750720330385,6.895,144.93,144.89,6.8962]
[1750720330574,6.895,144.93,144.87,6.28147814]
[1750720330774,6.895,144.93,144.85,46.86147814]
[1750720331182,40.58,144.94,144.85,46.86147814]
[1750720331788,46.86147814,144.94,144.86,19.85]
[1750720331983,6.28147814,144.94,144.86,19.85]
[1750720332187,40.56,145.07,144.92,6.27859957]
[1750720332389,40.56,145.07,144.94,6.27859957]
[1750720332390,6.27859957,145.04,144.94,6.27859957]
[1750720332582,6.27859957,145.04,144.98,6.8922]
[1750720332781,6.8907,145.02,144.98,6.8922]
[1750720333182,6.8907,145.02,144.96,6.8928]
[1750720333494,6.27859957,145.02,144.93,40.56]
[1750720334190,40.56,145.03,144.95,6.8934]
[1750720334383,46.83859957,145.03,144.95,6.8934]
[1750720334683,46.83859957,145.03,144.94,6.27859957]
[1750720334881,6.27859957,145.02,144.93,40.56]
[1750720335076,6.27859957,144.98,144.88,40.56]
[1750720335280,47.493,145.03,144.88,40.56]
[1750720335281,6.27859957,144.96,144.88,40.56]
[1750720335487,6.27859957,144.94,144.87,4.6028]
[1750720335675,6.27859957,144.94,144.86,19.85]
[1750720335884,6.27859957,144.92,144.86,19.85]
[1750720336081,6.8974,144.88,144.86,19.85]
[1750720336490,6.27859957,144.9,144.86,19.85]
[1750720336688,6.8975,144.87,144.86,19.85]
[1750720337588,40.56,144.88,144.78,6.27859957]
[1750720337791,6.27859957,144.87,144.8,13.61]
[1750720338093,6.27859957,144.87,144.82,6.8996]
[1750720338395,46.83859957,144.88,144.8,13.61]
[1750720338792,6.27859957,144.86,144.8,13.61]
[1750720339182,6.899,144.84,144.81,6.9004]
[1750720339498,6.27859957,144.86,144.8,13.61]
[1750720340195,6.27859957,144.84,144.8,13.61]
[1750720340381,46.85859957,144.84,144.8,13.61]
[1750720341792,6.9004,144.81,144.8,13.61]
[1750720342098,40.58,144.84,144.8,13.61]
[1750720343589,6.8996,144.83,144.8,13.61]
[1750720344495,40.58,144.84,144.8,13.61]
[1750720344689,6.27859957,144.83,144.8,13.61]
[1750720345090,6.9004,144.81,144.8,13.61]
[1750720345494,40.58,144.84,144.8,13.61]
[1750720345691,47.4793,144.84,144.8,13.61]
[1750720346899,47.4793,144.84,144.8,20.5108]
[1750720349804,40.58,144.84,144.8,13.61]
[1750720350000,40.54,144.87,144.8,13.61]
[1750720350303,6.8987,144.85,144.82,6.27859957]
[1750720351501,40.54,144.87,144.8,20.5107]
[1750720351707,40.54,144.87,144.8,13.61]
[1750720352209,6.8997,144.83,144.8,13.61]
[1750720353109,6.8991,144.84,144.8,13.61]
[1750720353610,6.27859957,144.82,144.8,13.61]
[1750720353799,40.54,144.81,144.8,10.364]
[1750720354000,40.54,144.81,144.77,17.26]
[1750720354205,6.9014,144.79,144.77,17.26]
[1750720355217,6.9018,144.78,144.77,17.26]
[1750720356106,6.27859957,144.8,144.77,17.26]
[1750720356107,6.9015,144.79,144.77,17.26]
[1750720358811,6.27859957,144.8,144.77,17.26]
[1750720359308,6.27859957,144.8,144.77,24.162]
[1750720359714,40.54,144.81,144.77,17.26]
[1750720360015,40.54,144.81,144.78,6.9015]
[1750720360404,40.54,144.81,144.77,24.1621]
[1750720360709,47.4407,144.81,144.77,24.1621]
[1750720360907,40.54,144.81,144.78,6.9017]
[1750720361113,47.4407,144.81,144.77,17.26]
[1750720361512,40.54,144.81,144.78,6.9015]
[1750720362811,47.4405,144.81,144.77,24.1621]
[1750720363713,47.4405,144.81,144.78,19.39]
[1750720363914,40.54,144.81,144.78,19.39]
[1750720365009,40.54,144.81,144.79,6.9011]
[1750720365216,6.8996,144.83,144.78,19.39]
[1750720365909,6.8996,144.83,144.8,6.9009]
[1750720366114,6.9,144.82,144.78,44.69]
[1750720367111,46.81859957,144.84,144.78,44.69]
[1750720367112,6.9004,144.81,144.78,44.69]
[1750720368219,6.27859957,144.81,144.78,44.69]
[1750720368714,6.9012,144.8,144.78,44.69]
[1750720369615,13.17989957,144.79,144.78,44.69]
[1750720370013,6.9028,144.76,144.75,17.27]
[1750720370215,13.18139957,144.76,144.75,17.27]
[1750720370713,6.902,144.75,144.65,636.68]
[1750720371011,6.27859957,144.72,144.68,6.9065]
[1750720371216,6.27859957,144.72,144.66,4.6088]
[1750720371416,6.27859957,144.74,144.66,4.6088]
[1750720371618,6.9045,144.73,144.69,6.9058]
[1750720372111,6.27859957,144.75,144.66,4.6088]
[1750720372617,13.18409957,144.71,144.67,6.9068]
[1750720373015,6.27859957,144.71,144.66,4.6088]
[1750720373718,13.18379957,144.71,144.67,6.9069]
[1750720374016,6.27859957,144.71,144.66,4.6088]
[1750720374318,6.9059,144.7,144.66,11.5161]
[1750720374515,6.27859957,144.71,144.66,11.5161]
[1750720374516,6.27859957,144.69,144.66,4.6088]
[1750720375511,6.27859957,144.69,144.63,2.383]
[1750720375717,6.907,144.68,144.64,6.9083]
[1750720376714,6.27859957,144.7,144.63,2.383]
[1750720377219,13.18559957,144.68,144.63,2.383]
[1750720377418,13.18559957,144.68,144.64,6.9084]
[1750720377808,6.27859957,144.68,144.63,9.2916]
[1750720378011,6.27859957,144.68,144.65,22.31]
[1750720378213,6.9074,144.67,144.65,22.31]
[1750720379720,53.74539957,144.68,144.65,22.31]
[1750720380108,46.83859957,144.68,144.65,22.31]
[1750720380311,6.9075,144.67,144.65,22.31]
[1750720380516,46.83859957,144.68,144.65,22.31]
[1750720380721,6.27859957,144.66,144.65,22.31]
[1750720380921,13.18609957,144.66,144.65,22.31]
[1750720381522,6.27859957,144.66,144.65,22.31]
[1750720381717,6.27859957,144.67,144.65,22.31]
[1750720382221,6.27859957,144.67,144.61,17.28]
[1750720382421,6.27859957,144.63,144.61,17.28]
[1750720382623,13.18779957,144.63,144.6,27.64]
[1750720383017,6.27859957,144.63,144.6,27.64]
[1750720383931,6.27859957,144.63,144.6,34.5503]
[1750720384230,6.27859957,144.63,144.6,27.64]
[1750720384432,40.44,144.64,144.61,6.9096]
[1750720386837,40.44,144.64,144.62,6.9094]
[1750720387036,6.27859957,144.66,144.6,44.92]
[1750720387336,6.9084,144.65,144.61,6.9096]
[1750720387531,6.9084,144.65,144.6,44.92]
[1750720387532,6.27859957,144.66,144.6,44.92]
[1750720387830,40.44,144.67,144.6,44.92]
[1750720388034,6.27859957,144.62,144.6,44.92]
[1750720389030,6.9099,144.61,144.6,23.6648]
[1750720389336,6.27859957,144.62,144.58,0.0001]
[1750720389630,6.27859957,144.59,144.53,28.5751]
[1750720389836,6.27859957,144.57,144.53,28.5751]
[1750720390729,6.9126,144.56,144.53,28.5751]
[1750720391130,6.9126,144.56,144.53,2.3551]
[1750720391338,40.44,144.58,144.53,2.3551]
[1750720392026,40.44,144.58,144.55,6.9125]
[1750720392327,40.44,144.58,144.53,2.3551]
[1750720392835,47.3516,144.58,144.54,6.9129]
[1750720393332,40.44,144.58,144.56,6.9122]
[1750720394133,6.27859957,144.59,144.56,6.9122]
[1750720394334,53.64869957,144.61,144.53,2.3551]
[1750720394738,53.64869957,144.61,144.53,8.63369957]
[1750720395037,53.64869957,144.61,144.57,6.9115]
[1750720395237,47.3701,144.61,144.57,6.9115]
[1750720395538,6.9105,144.6,144.57,6.9115]
[1750720395738,6.9105,144.6,144.56,6.9121]
[1750720396133,596.58,144.7,144.53,2.3551]
[1750720396134,13.8051,144.77,144.57,149.75859957]